bitfinex-derivatives/quotes_BTCF0:USTF0_20230401
["timestamp","ask_amount","ask_price","bid_price","bid_amount"]
[1680312673569,0.3047,28458.0,28455.0,0.40240853]
[1680312676066,0.3047,28458.0,28456.0,0.00171906]
[1680312677261,0.3007,28458.0,28456.0,0.00171906]
[1680312677466,0.3047,28458.0,28456.0,0.00171906]
[1680312683268,0.3007,28458.0,28456.0,0.00171906]
[1680312683468,0.3047,28458.0,28456.0,0.00171906]
[1680312683669,0.3007,28458.0,28457.0,0.37257881]
[1680312683967,0.3047,28458.0,28457.0,0.37257881]
[1680312685969,0.3007,28458.0,28457.0,0.37257881]
[1680312686169,0.3047,28458.0,28457.0,0.37257881]
[1680312686370,0.004,28458.0,28457.0,0.37257881]
[1680312686571,0.3047,28458.0,28457.0,0.37257881]
[1680312687469,0.004,28458.0,28457.0,0.37257881]
[1680312687666,0.3047,28458.0,28457.0,0.37257881]
[1680312691171,0.3047,28458.0,28457.0,0.37465196]
[1680312694862,0.3007,28458.0,28457.0,0.37465196]
[1680312695066,0.3047,28458.0,28457.0,0.37465196]
[1680312701970,0.004,28458.0,28457.0,0.37465196]
[1680312702474,0.3047,28458.0,28457.0,0.37465196]
[1680312705974,0.3047,28458.0,28457.0,0.00207315]
[1680312706276,0.3047,28458.0,28455.0,0.03494423]
[1680312706477,0.3047,28458.0,28456.0,0.00207228]
[1680312706784,0.3047,28458.0,28453.0,0.3007]
[1680312707375,0.3047,28458.0,28454.0,0.52609632]
[1680312707578,0.3047,28458.0,28454.0,0.93324753]
[1680312709177,0.3007,28458.0,28454.0,0.93324753]
[1680312709375,0.3047,28458.0,28454.0,0.93324753]
[1680312713577,0.3007,28457.0,28454.0,0.93324753]
[1680312715384,0.3007,28457.0,28454.0,0.93424753]
[1680312715784,0.3007,28457.0,28455.0,0.05]
[1680312716277,0.3007,28457.0,28454.0,0.40815121]
[1680312716874,0.3007,28457.0,28455.0,0.001]
[1680312717078,0.3007,28457.0,28455.0,0.051]
[1680312717280,0.3007,28457.0,28455.0,0.001]
[1680312718484,0.3007,28457.0,28454.0,0.40815121]
[1680312718787,0.3007,28457.0,28454.0,0.40715121]
[1680312718980,0.3007,28457.0,28455.0,0.001]
[1680312719379,0.3007,28457.0,28454.0,0.40815121]
[1680312719581,0.3007,28460.0,28456.0,0.3007]
[1680312719986,0.3007,28460.0,28457.0,0.4420819]
[1680312720384,0.3047,28460.0,28457.0,0.3920819]
[1680312721187,0.3047,28460.0,28458.0,0.00207146]
[1680312722698,0.004,28460.0,28458.0,0.00207146]
[1680312728988,0.004,28460.0,28449.0,1.0901]
[1680312729195,0.3007,28457.0,28452.0,0.3007]
[1680312729695,0.3007,28457.0,28453.0,0.92629959]
[1680312731100,0.3007,28457.0,28453.0,0.94029959]
[1680312731599,0.3007,28457.0,28453.0,0.93329959]
[1680312731796,0.05,28456.0,28453.0,0.93329959]
[1680312732098,0.3007,28454.0,28453.0,0.007]
[1680312733899,0.3007,28454.0,28453.0,0.027]
[1680312736203,0.3007,28454.0,28453.0,0.02918737]
[1680312739509,0.3007,28454.0,28453.0,0.00218737]
[1680312739699,0.3057,28454.0,28453.0,0.00218737]
[1680312739903,0.3007,28454.0,28453.0,0.00218737]
[1680312740096,0.3007,28454.0,28453.0,0.00318737]
[1680312742009,0.05,28456.0,28453.0,0.00318737]
[1680312742310,0.3007,28454.0,28453.0,0.00318737]
[1680312743407,0.3007,28454.0,28453.0,0.00218737]
[1680312743609,0.6014,28454.0,28453.0,0.00318737]
[1680312744307,0.6014,28454.0,28453.0,0.00301175]
[1680312749317,0.3007,28454.0,28453.0,0.00301175]
[1680312750525,0.3007,28458.0,28453.0,0.30371175]
[1680312750820,0.3007,28458.0,28454.0,0.05]
[1680312751020,0.3007,28458.0,28454.0,0.45936579]
[1680312751623,0.3057,28458.0,28454.0,0.45936579]
[1680312751825,0.005,28458.0,28454.0,0.45936579]
[1680312752125,0.005,28458.0,28454.0,0.46136579]
[1680312752620,0.005,28458.0,28454.0,0.46036579]
[1680312752833,0.005,28458.0,28454.0,0.76106579]
[1680312753033,0.005,28458.0,28454.0,0.76006579]
[1680312753441,0.005,28458.0,28454.0,0.45936579]
[1680312754227,0.3007,28459.0,28454.0,0.46036579]
[1680312755235,0.3057,28459.0,28454.0,0.40936579]
[1680312756935,0.005,28459.0,28454.0,0.40936579]
[1680312757124,0.3007,28457.0,28454.0,0.40936579]
[1680312758232,0.3007,28457.0,28454.0,0.41636579]
[1680312762548,0.3007,28457.0,28454.0,0.71706579]
[1680312763045,0.3007,28459.0,28454.0,0.41636579]
[1680312763941,0.3007,28459.0,28455.0,0.05]
[1680312764241,0.3007,28459.0,28456.0,0.00207865]
[1680312764442,0.3057,28459.0,28456.0,0.00207865]
[1680312765141,0.3007,28459.0,28456.0,0.00207865]
[1680312765345,0.3057,28459.0,28456.0,0.00207865]
[1680312768040,0.3057,28459.0,28452.0,0.3007]
[1680312768437,0.3057,28459.0,28453.0,0.00207845]
[1680312768744,0.3057,28459.0,28454.0,0.38746739]
[1680312770646,0.005,28459.0,28454.0,0.38746739]
[1680312770940,0.3057,28459.0,28454.0,0.38746739]
[1680312775643,0.3057,28459.0,28455.0,0.5281579]
[1680312781054,0.3057,28459.0,28456.0,0.00207772]
[1680312787258,0.3007,28458.0,28456.0,0.00207772]
[1680312787458,0.05,28457.0,28456.0,0.00207772]
[1680312788156,0.05,28457.0,28450.0,0.53926059]
[1680312788454,0.3007,28454.0,28450.0,0.13926059]
[1680312788658,0.3007,28454.0,28447.0,1.1]
[1680312788859,0.3007,28454.0,28451.0,0.91599929]
[1680312789152,0.3007,28454.0,28450.0,0.92354887]
[1680312789359,0.3007,28451.0,28450.0,0.027]
[1680312789760,0.3007,28451.0,28450.0,0.5534891]
[1680312790056,0.3007,28451.0,28450.0,0.91981107]
[1680312791044,0.3007,28454.0,28450.0,0.89281107]
[1680312791559,0.3007,28454.0,28450.0,0.92081107]
[1680312791955,0.3007,28454.0,28450.0,0.91981107]
[1680312792760,0.3007,28454.0,28450.0,0.39332197]
[1680312795758,0.3007,28454.0,28451.0,0.05]
[1680312795961,0.3007,28456.0,28451.0,0.05205415]
[1680312796560,0.3007,28456.0,28452.0,0.53040188]
[1680312798356,0.3007,28456.0,28452.0,0.54440188]
[1680312801162,0.3007,28453.0,28452.0,0.54440188]
[1680312803061,0.3007,28453.0,28452.0,0.53040188]
[1680312803263,0.3007,28453.0,28452.0,0.55840188]
[1680312803463,0.3007,28456.0,28452.0,0.55840188]
[1680312804568,0.3007,28456.0,28452.0,0.54440188]
[1680312807468,0.3007,28453.0,28452.0,0.54440188]
[1680312807965,0.3007,28453.0,28452.0,0.014]
[1680312809268,0.3007,28453.0,28452.0,0.028]
[1680312810164,0.3007,28453.0,28451.0,0.00205415]
[1680312810364,0.3007,28453.0,28452.0,0.014]
[1680312810765,0.3007,28453.0,28450.0,0.10621676]
[1680312810963,0.3007,28453.0,28452.0,0.01606452]
[1680312811158,0.3007,28453.0,28452.0,0.014]
[1680312817474,0.05,28459.0,28449.0,0.05]
[1680312817771,0.3007,28454.0,28452.0,0.014]
[1680312818464,0.3007,28454.0,28450.0,0.36685466]
[1680312818665,0.05,28456.0,28450.0,0.36685466]
[1680312818866,0.3007,28455.0,28450.0,0.36685466]
[1680312819072,0.3007,28455.0,28452.0,0.007]
[1680312820474,0.3007,28455.0,28451.0,0.52514583]
[1680312820772,0.3007,28452.0,28451.0,0.52514583]
[1680312821574,0.3007,28452.0,28451.0,0.52614583]
[1680312821871,0.3007,28452.0,28451.0,0.001]
[1680312822072,0.3007,28452.0,28451.0,0.021]
[1680312823374,0.3007,28452.0,28448.0,0.3007]
[1680312823578,0.3007,28455.0,28451.0,0.3217]
[1680312824077,0.3007,28455.0,28452.0,0.94917934]
[1680312824982,0.3007,28455.0,28452.0,0.95017934]
[1680312825878,0.3007,28455.0,28453.0,0.00207136]
[1680312826383,0.3007,28455.0,28454.0,0.92632547]
[1680312826570,0.3007,28458.0,28454.0,1.22702547]
[1680312826777,0.3007,28458.0,28454.0,0.92632547]
[1680312827273,0.3007,28458.0,28454.0,1.22702547]
[1680312828085,0.3007,28458.0,28454.0,0.92732547]
[1680312830287,0.3007,28461.0,28458.0,0.00011154]
[1680312830983,0.3007,28465.0,28460.0,0.3007]
[1680312831478,0.3007,28465.0,28461.0,0.9143198]
[1680312833478,0.004,28465.0,28461.0,0.9163198]
[1680312833785,0.3047,28465.0,28461.0,0.9163198]
[1680312835281,0.3047,28465.0,28461.0,0.91612822]
[1680312836085,0.3047,28465.0,28462.0,0.05]
[1680312836285,0.3047,28465.0,28461.0,0.91612822]
[1680312836487,0.3047,28465.0,28461.0,0.39064026]
[1680312837090,0.3047,28465.0,28462.0,0.52851892]
[1680312837585,0.3047,28465.0,28462.0,0.52651892]
[1680312839392,0.3047,28465.0,28462.0,0.52851892]
[1680312840890,0.3047,28465.0,28463.0,0.0039766]
[1680312842392,0.3007,28465.0,28463.0,0.0039766]
[1680312842593,0.3047,28465.0,28463.0,0.0059766]
[1680312844585,0.004,28465.0,28463.0,0.0059766]
[1680312847297,0.004,28465.0,28463.0,0.0559766]
[1680312847694,0.004,28465.0,28464.0,0.38128648]
[1680312848296,0.3007,28471.0,28464.0,0.38128648]
[1680312848597,0.3007,28471.0,28464.0,0.906035]
[1680312848989,0.3007,28471.0,28464.0,0.907035]
[1680312849385,0.3007,28471.0,28464.0,0.908035]
[1680312849594,0.3007,28471.0,28465.0,0.3007]
[1680312849797,0.05,28470.0,28465.0,0.3007]
[1680312849998,0.05,28470.0,28466.0,0.52818046]
[1680312850496,0.3007,28471.0,28466.0,0.52818046]
[1680312851894,0.3007,28471.0,28466.0,0.53018046]
[1680312852296,0.05,28470.0,28466.0,0.53018046]
[1680312855899,0.05,28470.0,28467.0,0.00431548]
[1680312856501,0.3507,28470.0,28467.0,0.00431548]
[1680312856702,0.3507,28470.0,28467.0,0.00631548]
[1680312857290,0.3007,28470.0,28467.0,0.00631548]
[1680312860704,0.05,28472.0,28467.0,0.00631548]
[1680312861007,0.3007,28471.0,28467.0,0.00631548]
[1680312861594,0.3007,28471.0,28468.0,0.52894914]
[1680312863006,0.3007,28471.0,28468.0,0.53094914]
[1680312863408,0.3007,28474.0,28469.0,0.3007]
[1680312863704,0.3007,28476.0,28469.0,0.68535409]
[1680312864305,0.3007,28476.0,28472.0,0.3007]
[1680312864710,0.3007,28476.0,28473.0,0.91750145]
[1680312865709,0.3007,28476.0,28473.0,0.91950145]
[1680312865911,0.3007,28476.0,28474.0,0.05]
[1680312866308,0.3007,28476.0,28473.0,0.3894518]
[1680312866808,0.3007,28476.0,28474.0,0.002]
[1680312867013,0.3007,28476.0,28474.0,0.57590051]
[1680312867215,0.3007,28476.0,28474.0,0.52390051]
[1680312867420,0.3007,28479.0,28475.0,0.3007]
[1680312867916,0.3007,28479.0,28476.0,0.57989935]
[1680312868317,0.3007,28482.0,28477.0,0.39681838]
[1680312868521,0.3007,28482.0,28478.0,0.05]
[1680312868815,0.3007,28482.0,28479.0,0.38521924]
[1680312869218,0.3007,28482.0,28480.0,0.526267]
[1680312870122,0.3007,28482.0,28480.0,0.528267]
[1680312870511,0.3007,28482.0,28480.0,0.002]
[1680312870924,0.3007,28482.0,28481.0,0.00766405]
[1680312871822,0.3007,28482.0,28481.0,0.00966405]
[1680312872510,0.05,28485.0,28481.0,0.00966405]
[1680312872706,0.3007,28484.0,28481.0,0.00966405]
[1680312874115,0.3007,28487.0,28481.0,0.00966405]
[1680312874821,0.05,28486.0,28481.0,0.00966405]
[1680312875622,0.3007,28487.0,28481.0,0.00966405]
[1680312875820,0.3007,28487.0,28481.0,0.00766405]
[1680312876020,0.3007,28487.0,28481.0,0.00966405]
[1680312876222,0.3007,28487.0,28482.0,0.37987242]
[1680312876522,0.3007,28487.0,28483.0,0.05]
[1680312876721,0.3007,28487.0,28483.0,0.52422631]
[1680312877220,0.3007,28487.0,28484.0,0.05]
[1680312877426,0.3007,28487.0,28483.0,0.52422631]
[1680312877721,0.3007,28487.0,28481.0,0.00766405]
[1680312877926,0.3007,28487.0,28483.0,0.002]
[1680312879014,0.3007,28487.0,28484.0,0.52681655]
[1680312880024,0.05,28491.0,28484.0,0.52681655]
[1680312880627,0.05,28491.0,28484.0,0.52881655]
[1680312880823,0.05,28491.0,28484.0,0.52681655]
[1680312881125,0.05,28491.0,28484.0,0.52881655]
[1680312881326,0.6014,28492.0,28484.0,0.52881655]
[1680312883229,0.05,28491.0,28484.0,0.52881655]
[1680312883730,0.6014,28492.0,28484.0,0.52881655]
[1680312884128,0.6014,28492.0,28485.0,0.40413292]
[1680312884830,0.05,28491.0,28485.0,0.40413292]
[1680312885929,0.6014,28492.0,28486.0,0.00766367]
[1680312887031,0.6014,28492.0,28486.0,0.002]
[1680312888626,0.6014,28492.0,28486.0,0.3027]
[1680312889816,0.6014,28492.0,28486.0,0.002]
[1680312890021,0.3007,28492.0,28486.0,0.002]
[1680312890426,0.3507,28492.0,28486.0,0.002]
[1680312891630,0.05,28491.0,28486.0,0.002]
[1680312892732,0.05,28491.0,28483.0,0.35292608]
[1680312892925,0.3507,28492.0,28486.0,0.002]
[1680312893830,0.3507,28492.0,28483.0,0.35292608]
[1680312894033,0.3507,28492.0,28486.0,0.002]
[1680312894632,0.3507,28492.0,28486.0,0.00187394]
[1680312895633,0.3007,28492.0,28486.0,0.00187394]
[1680312896029,0.3007,28492.0,28487.0,0.93165797]
[1680312896429,0.3007,28492.0,28488.0,0.05]
[1680312896733,0.3007,28494.0,28488.0,0.05]
[1680312896934,0.3007,28494.0,28489.0,0.91382288]
[1680312897229,0.3007,28494.0,28487.0,1.48797877]
[1680312897435,0.3007,28494.0,28488.0,0.052]
[1680312897739,0.3007,28494.0,28490.0,0.40694317]
[1680312898028,0.3007,28494.0,28489.0,0.002]
[1680312898435,0.3007,28494.0,28491.0,0.37002473]
[1680312898638,0.3007,28494.0,28490.0,0.90638804]
[1680312898833,0.3007,28494.0,28490.0,0.52467223]
[1680312899326,0.3007,28494.0,28491.0,0.37047321]
[1680312900438,0.6014,28494.0,28491.0,0.37247321]
[1680312900738,0.05,28493.0,28491.0,0.37247321]
[1680312901635,0.05,28493.0,28491.0,0.002]
[1680312911239,0.6014,28494.0,28491.0,0.002]
[1680312912047,0.6014,28494.0,28492.0,0.0071582]
[1680312912347,0.3007,28494.0,28492.0,0.0071582]
[1680312913144,0.3007,28494.0,28492.0,0.0091582]
[1680312914346,0.05,28493.0,28492.0,0.0091582]
[1680312918852,0.3007,28494.0,28492.0,0.0091582]
[1680312919054,0.05,28493.0,28492.0,0.0091582]
[1680312923949,0.05,28493.0,28483.0,0.15599166]
[1680312924152,0.3007,28487.0,28481.0,0.8836]
[1680312924353,0.05,28486.0,28481.0,0.8836]
[1680312924748,0.05,28486.0,28482.0,0.91619065]
[1680312925550,0.05,28486.0,28482.0,0.93019065]
[1680312926852,0.3507,28487.0,28482.0,0.98163768]
[1680312927953,0.05,28486.0,28482.0,0.96763768]
[1680312928151,0.05,28486.0,28482.0,0.97563768]
[1680312928848,0.3007,28484.0,28482.0,0.97563768]
[1680312929051,0.05,28483.0,28482.0,0.97563768]
[1680312929251,0.05,28483.0,28482.0,0.92419065]
[1680312929446,0.3507,28483.0,28482.0,0.11119349]
[1680312930042,0.3507,28483.0,28482.0,0.11719349]
[1680312930443,0.3507,28483.0,28482.0,0.10419349]
[1680312930646,0.3527,28483.0,28482.0,0.001]
[1680312931449,0.3507,28483.0,28476.0,1.1004]
[1680312931750,0.3007,28479.0,28476.0,0.311]
[1680312931954,0.05,28478.0,28474.0,0.15806241]
[1680312932161,0.05,28478.0,28477.0,0.91569011]
[1680312932449,0.05,28478.0,28473.0,0.3007]
[1680312932450,0.05,28478.0,28475.0,0.89607402]
[1680312932655,0.05,28478.0,28474.0,0.90114038]
[1680312932849,0.05,28478.0,28473.0,0.40753424]
[1680312933051,0.05,28478.0,28476.0,0.021]
[1680312933553,0.05,28478.0,28474.0,0.40403339]
[1680312933950,0.052,28478.0,28476.0,0.001]
[1680312934551,0.052,28478.0,28474.0,0.37803339]
[1680312936158,0.052,28478.0,28474.0,0.37703339]
[1680312938056,0.3007,28476.0,28473.0,0.40753424]
[1680312938251,0.052,28478.0,28473.0,0.40753424]
[1680312938450,0.3007,28476.0,28473.0,0.40753424]
[1680312938646,0.3007,28476.0,28473.0,0.3007]
[1680312938847,0.3007,28476.0,28469.0,0.4]
[1680312939053,0.3007,28473.0,28470.0,0.03426793]
[1680312939250,0.05,28475.0,28469.0,0.4]
[1680312939457,0.3007,28476.0,28471.0,0.88950756]
[1680312939846,0.3007,28476.0,28470.0,1.26390076]
[1680312940051,0.3007,28476.0,28472.0,0.91226149]
[1680312940358,0.3007,28476.0,28471.0,0.92400491]
[1680312940552,0.3007,28476.0,28473.0,0.52389723]
[1680312940751,0.3007,28476.0,28471.0,0.39942772]
[1680312941064,0.3007,28476.0,28472.0,0.52710667]
[1680312941452,0.3007,28476.0,28471.0,0.92679063]
[1680312941758,0.3007,28476.0,28472.0,0.05]
[1680312941958,0.3007,28476.0,28471.0,0.92679063]
[1680312942158,0.3007,28476.0,28473.0,0.53029901]
[1680312942457,0.3007,28476.0,28472.0,0.52964539]
[1680312943558,0.3027,28476.0,28472.0,0.53064539]
[1680312943761,0.3007,28476.0,28472.0,0.52964539]
[1680312943955,0.3027,28476.0,28471.0,0.52526515]
[1680312944758,0.3027,28476.0,28472.0,0.39327293]
[1680312945058,0.3027,28476.0,28473.0,0.52608314]
[1680312945659,0.3007,28476.0,28473.0,0.52608314]
[1680312945859,0.3027,28476.0,28473.0,0.52608314]
[1680312946062,0.3007,28476.0,28473.0,0.52608314]
[1680312946257,0.3027,28476.0,28473.0,0.52608314]
[1680312954162,0.3007,28476.0,28473.0,0.52608314]
[1680312954367,0.3027,28476.0,28473.0,0.52608314]
[1680312956166,0.3007,28476.0,28473.0,0.52708314]
[1680312959781,0.3007,28476.0,28474.0,0.00174872]
[1680312960779,0.3007,28476.0,28474.0,0.00274872]
[1680312967186,0.05,28479.0,28474.0,0.00274872]
[1680312967384,0.3007,28475.0,28474.0,0.00274872]
[1680312968088,0.3007,28475.0,28474.0,0.00374872]
[1680312968478,0.3007,28475.0,28474.0,0.00974872]
[1680312976382,0.3007,28475.0,28469.0,0.14102681]
[1680312976587,0.3007,28472.0,28467.0,0.6276]
[1680312976792,0.3007,28472.0,28467.0,0.40594932]
[1680312977296,0.3007,28472.0,28468.0,0.91454548]
[1680312978292,0.3017,28472.0,28468.0,0.91454548]
[1680312978793,0.3017,28472.0,28468.0,0.94154548]
[1680312979896,0.3017,28472.0,28468.0,0.55697026]
[1680312980089,0.3007,28469.0,28468.0,0.027]
[1680312981094,0.3007,28469.0,28465.0,0.10769444]
[1680312981400,0.3007,28466.0,28462.0,0.05]
[1680312981690,0.3007,28466.0,28461.0,0.83968994]
[1680312982098,0.3007,28466.0,28462.0,0.38472096]
[1680312982287,0.3007,28466.0,28465.0,0.007]
[1680312982793,0.3007,28466.0,28461.0,0.1836819]
[1680312982794,0.30394275,28466.0,28461.0,0.1836819]
[1680312982997,0.3007,28463.0,28461.0,0.027]
[1680312983491,0.05,28462.0,28461.0,0.027]
[1680312983995,0.05224282,28462.0,28457.0,0.89709688]
[1680312984196,0.05224282,28462.0,28457.0,0.10769688]
[1680312984396,0.051,28462.0,28461.0,0.027]
[1680312984586,0.05324286,28462.0,28461.0,0.027]
[1680312984785,0.05324286,28462.0,28458.0,0.92659046]
[1680312984989,0.05324286,28462.0,28458.0,0.52666866]
[1680312985198,0.051,28462.0,28457.0,0.027]
[1680312985391,0.051,28462.0,28461.0,0.027]
[1680312985897,0.3517,28462.0,28461.0,0.027]
[1680312986486,0.3517,28462.0,28455.0,0.83886579]
[1680312986487,0.3517,28462.0,28458.0,0.027]
[1680312986897,0.3507,28462.0,28455.0,0.83886579]
[1680312987092,0.3517,28462.0,28461.0,0.027]
[1680312987393,0.35394301,28462.0,28458.0,0.027]
[1680312988101,0.35394301,28462.0,28461.0,0.027]
[1680312988600,0.35394301,28462.0,28458.0,0.027]
[1680312989490,0.35394301,28462.0,28461.0,0.027]
[1680312989892,0.40652386,28462.0,28461.0,0.027]
[1680312990099,0.40652386,28462.0,28458.0,0.027]
[1680312990497,0.40652386,28462.0,28461.0,0.027]
[1680312990998,0.40652386,28462.0,28458.0,0.027]
[1680312991896,0.35652386,28462.0,28458.0,0.027]
[1680312992098,0.40652386,28462.0,28458.0,0.027]
[1680312992293,0.40652386,28462.0,28461.0,0.027]
[1680312992688,0.40652386,28462.0,28458.0,0.027]
[1680312992896,0.3007,28459.0,28458.0,0.027]
[1680312993097,0.3007,28459.0,28456.0,0.38177358]
[1680312993800,0.3007,28459.0,28458.0,0.027]
[1680312994098,0.3017,28459.0,28456.0,0.40877358]
[1680312995401,0.05,28458.0,28456.0,0.40877358]
[1680312995600,0.05,28458.0,28456.0,0.38177358]
[1680312996102,0.05,28458.0,28456.0,0.40877358]
[1680312996490,0.051,28458.0,28456.0,0.40877358]
[1680312998399,0.001,28458.0,28456.0,0.40877358]
[1680313002505,0.001,28458.0,28456.0,0.40777358]
[1680313004798,0.00416988,28457.0,28456.0,0.40777358]
[1680313005993,0.00516988,28457.0,28456.0,0.38877358]
[1680313007001,0.00516988,28457.0,28456.0,0.38177358]
[1680313007198,0.00516988,28457.0,28456.0,0.38877358]
[1680313007505,0.00416988,28457.0,28456.0,0.38177358]
[1680313007704,0.00516988,28457.0,28456.0,0.39577358]
[1680313007906,0.001,28457.0,28456.0,0.39577358]
[1680313008104,0.001,28457.0,28456.0,0.014]
[1680313012607,0.00517038,28457.0,28456.0,0.014]
[1680313018205,0.001,28457.0,28456.0,0.014]
[1680313018707,0.00517077,28457.0,28456.0,0.014]
[1680313018908,0.001,28457.0,28456.0,0.014]
[1680313019912,0.00517085,28457.0,28456.0,0.014]
[1680313027818,0.00503788,28457.0,28456.0,0.014]
[1680313033922,0.30573788,28457.0,28456.0,0.014]
[1680313042728,0.00503788,28457.0,28456.0,0.014]
[1680313042925,0.60643788,28457.0,28456.0,0.014]
[1680313051452,0.00503788,28457.0,28456.0,0.014]
[1680313051656,0.60643788,28457.0,28456.0,0.014]
[1680313052550,0.00503788,28457.0,28456.0,0.014]
[1680313052745,0.60643788,28457.0,28456.0,0.014]
[1680313054858,0.00503788,28457.0,28456.0,0.014]
[1680313055057,0.60643788,28457.0,28456.0,0.014]
[1680313061557,0.00503788,28457.0,28456.0,0.014]
[1680313062156,0.00086703,28457.0,28456.0,0.38757535]
[1680313063563,0.00425909,28457.0,28456.0,0.38757535]
[1680313063760,0.00086703,28457.0,28456.0,0.38757535]
[1680313064860,0.00425918,28457.0,28456.0,0.38757535]
[1680313068668,0.00086703,28457.0,28456.0,0.38757535]
[1680313070970,0.00425956,28457.0,28456.0,0.38757535]
[1680313071166,0.00086703,28457.0,28456.0,0.38757535]
[1680313076363,0.00414126,28457.0,28456.0,0.014]
[1680313076559,0.30484126,28457.0,28456.0,0.014]
[1680313080370,0.30397423,28457.0,28456.0,0.006]
[1680313081769,0.60467423,28457.0,28456.0,0.006]
[1680313081971,0.00327423,28457.0,28456.0,0.006]
[1680313082175,0.6014,28457.0,28456.0,0.006]
[1680313082376,0.60472691,28457.0,28456.0,0.006]
[1680313082771,0.60472691,28457.0,28456.0,0.00583484]
[1680313089081,0.00332691,28457.0,28456.0,0.00583484]
[1680313089283,0.60472691,28457.0,28456.0,0.00583484]
[1680313091080,0.00332691,28457.0,28456.0,0.00583484]
[1680313091281,0.60472691,28457.0,28456.0,0.00583484]
[1680313097392,0.05,28456.0,28451.0,1.0968]
[1680313097587,0.3007,28454.0,28451.0,0.3074]
[1680313097800,0.3007,28454.0,28448.0,0.33496642]
[1680313098189,0.00332789,28453.0,28448.0,0.33496642]
[1680313098389,0.3007,28454.0,28448.0,0.33496642]
[1680313098591,0.3007,28454.0,28449.0,0.38628358]
[1680313098790,0.3007,28454.0,28449.0,0.91447243]
[1680313099589,0.3017,28454.0,28451.0,0.025]
[1680313099992,0.00332788,28453.0,28451.0,0.025]
[1680313100392,0.00332788,28453.0,28449.0,0.41128358]
[1680313100587,0.3017,28454.0,28449.0,0.41128358]
[1680313100797,0.001,28453.0,28451.0,0.027]
[1680313100994,0.3007,28452.0,28451.0,0.027]
[1680313101298,0.30402807,28452.0,28449.0,0.38628358]
[1680313101693,0.3007,28452.0,28449.0,0.38628358]
[1680313102200,0.3007,28453.0,28449.0,0.38628358]
[1680313102795,0.001,28452.0,28451.0,0.027]
[1680313102995,0.00432818,28452.0,28451.0,0.027]
[1680313103193,0.00332818,28452.0,28449.0,0.41328358]
[1680313103394,0.3017,28453.0,28449.0,0.41328358]
[1680313103798,0.001,28452.0,28451.0,0.027]
[1680313104000,0.051,28452.0,28451.0,0.027]
[1680313104295,0.00332826,28452.0,28449.0,0.41328358]
[1680313104600,0.3017,28453.0,28449.0,0.41328358]
[1680313104902,0.001,28453.0,28449.0,0.41328358]
[1680313105101,0.3017,28453.0,28449.0,0.41328358]
[1680313105694,0.001,28452.0,28451.0,0.027]
[1680313105890,0.00432833,28452.0,28451.0,0.027]
[1680313106096,0.00332833,28452.0,28449.0,0.41328358]
[1680313106399,0.3017,28453.0,28449.0,0.41328358]
[1680313106601,0.001,28452.0,28451.0,0.027]
[1680313106995,0.00463523,28452.0,28451.0,0.027]
[1680313107195,0.00463523,28452.0,28449.0,0.41328358]
[1680313107500,0.3507,28461.0,28449.0,1.01468358]
[1680313107799,0.00318119,28460.0,28454.0,0.05]
[1680313108500,0.00318119,28460.0,28453.0,0.3007]
[1680313109102,0.3007,28458.0,28454.0,0.38149213]
[1680313109501,0.3007,28458.0,28454.0,0.38249213]
[1680313109895,0.00318133,28457.0,28454.0,0.38149213]
[1680313111503,0.00318133,28457.0,28454.0,0.38749213]
[1680313114505,0.00318133,28457.0,28454.0,0.38149213]
[1680313114706,0.00418133,28457.0,28454.0,0.39349213]
[1680313122206,0.00418133,28457.0,28454.0,0.69419213]
[1680313123013,0.3007,28463.0,28455.0,0.05]
[1680313123319,0.3007,28463.0,28457.0,0.3007]
[1680313123811,0.3007,28463.0,28458.0,0.91794349]
[1680313124204,0.3087,28463.0,28458.0,0.91794349]
[1680313125810,0.3007,28463.0,28458.0,0.92394349]
[1680313128612,0.3007,28463.0,28459.0,0.05]
[1680313128822,0.3007,28467.0,28459.0,0.05]
[1680313129014,0.3007,28467.0,28460.0,0.93567783]
[1680313129214,0.3007,28467.0,28461.0,0.05]
[1680313129718,0.3007,28467.0,28462.0,0.38574215]
[1680313130319,0.3087,28467.0,28462.0,0.38574215]
[1680313130713,0.3087,28467.0,28462.0,0.38774215]
[1680313131210,0.008,28467.0,28462.0,0.38774215]
[1680313134724,0.008,28467.0,28462.0,0.38674215]
[1680313135016,0.008,28467.0,28462.0,0.38774215]
[1680313135712,0.3087,28467.0,28462.0,0.38774215]
[1680313136417,0.3087,28467.0,28462.0,0.68844215]
[1680313136723,0.008,28467.0,28462.0,0.38774215]
[1680313136921,0.3087,28467.0,28462.0,0.68844215]
[1680313138615,0.3087,28467.0,28462.0,0.38774215]
[1680313144721,0.3087,28467.0,28462.0,0.38674215]
[1680313145918,0.3087,28467.0,28463.0,0.05]
[1680313146118,0.3087,28467.0,28462.0,0.43674215]
[1680313146315,0.3087,28467.0,28464.0,0.40699953]
[1680313146526,0.3087,28467.0,28463.0,0.39096388]
[1680313147225,0.3087,28467.0,28464.0,0.001]
[1680313147520,0.3087,28467.0,28465.0,0.37948994]
[1680313148127,0.3087,28467.0,28463.0,0.001]
[1680313148128,0.3087,28467.0,28464.0,0.39157044]
[1680313148427,0.008,28467.0,28465.0,0.05]
[1680313148927,0.008,28467.0,28465.0,0.38416871]
[1680313149323,0.008,28467.0,28465.0,0.38516871]
[1680313149726,0.008,28467.0,28465.0,0.001]
[1680313150028,0.008,28467.0,28466.0,0.38648004]
[1680313151926,0.008,28467.0,28466.0,0.38748004]
[1680313153527,0.008,28467.0,28466.0,0.001]
[1680313153723,0.058,28467.0,28466.0,0.001]
[1680313155828,0.3587,28467.0,28466.0,0.001]
[1680313156029,0.3587,28467.0,28458.0,1.16536472]